bitfinex-derivatives/quotes_ETHF0:USTF0_20250709
["timestamp","ask_amount","ask_price","bid_price","bid_amount"]
[1752090206285,0.72457,2759.6,2759.5,0.72457]
[1752090206483,3.2078,2760.2,2759.9,0.72448]
[1752090206678,3.2078,2760.2,2759.8,0.72449]
[1752090206679,0.72448,2759.9,2759.8,0.72449]
[1752090206884,0.72447,2760.0,2759.8,0.72449]
[1752090207085,5.8187,2760.2,2760.1,0.72443]
[1752090207386,5.03201,2760.6,2759.6,3.2078]
[1752090207587,0.72446,2760.0,2759.9,0.72447]
[1752090207782,2.6109,2760.5,2760.1,0.72442]
[1752090207783,0.72441,2760.2,2760.1,0.72442]
[1752090207984,2.6109,2760.5,2760.1,0.72441]
[1752090208183,0.72442,2760.2,2760.1,0.72441]
[1752090208380,0.72439,2760.3,2760.2,0.72439]
[1752090208581,0.72444,2760.1,2760.0,0.72443]
[1752090208781,2.6109,2760.2,2759.7,1.81134]
[1752090208984,5.03201,2760.6,2759.8,1.81123]
[1752090209281,0.72438,2760.3,2759.8,2.5488]
[1752090209483,0.72439,2760.3,2760.2,0.72439]
[1752090209790,0.72449,2759.9,2759.8,0.72448]
[1752090210287,0.72452,2759.8,2759.7,0.72452]
[1752090210783,3.2078,2760.0,2759.1,1.56812262]
[1752090210981,3.2078,2760.0,2759.0,5.30987684]
[1752090210982,0.72461,2759.4,2759.3,0.72463]
[1752090211182,2.5931,2759.9,2759.0,3.2078]
[1752090211386,0.72456,2759.6,2759.5,0.72456]
[1752090211685,1.0094,2759.6,2759.2,0.72465]
[1752090211884,1.0094,2759.6,2758.8,53.78512262]
[1752090211885,1.8116,2759.3,2758.8,53.78512262]
[1752090212085,0.72473,2759.0,2758.9,0.72473]
[1752090212688,0.72477,2758.8,2758.7,6.59847]
[1752090212886,0.72477,2758.8,2758.7,6.59848]
[1752090213084,3.2078,2759.1,2759.0,0.72471]
[1752090213279,3.1486,2759.1,2759.0,0.72471]
[1752090213480,0.7245,2759.9,2759.0,7.58994723]
[1752090213679,0.72444,2760.1,2760.0,0.72443]
[1752090213886,0.72442,2760.2,2760.1,0.72441]
[1752090214077,0.72442,2760.2,2759.6,3.2078]
[1752090214078,1.81097,2760.3,2759.6,3.2078]
[1752090214283,2.4992,2760.1,2759.6,5.01918]
[1752090214577,0.72453,2759.7,2759.6,3.2078]
[1752090214782,6.90024723,2760.1,2759.1,1.8117]
[1752090214982,0.72458,2759.6,2759.5,0.72456]
[1752090215484,0.72452,2759.8,2759.7,0.72451]
[1752090215684,0.7245,2759.9,2759.8,0.72449]
[1752090216489,2.4992,2760.1,2759.3,3.2078]
[1752090216686,0.72455,2759.7,2759.6,0.72453]
[1752090218187,0.72455,2759.7,2759.6,0.72454]
[1752090218387,0.7246,2759.5,2759.4,0.72459]
[1752090218782,0.72461,2759.4,2759.3,3.2078]
[1752090218988,0.72465,2759.3,2759.2,0.72464]
[1752090219190,3.43312,2759.4,2759.3,0.72464]
[1752090219590,0.72465,2759.3,2759.2,0.72464]
[1752090219993,0.72467,2759.2,2759.1,0.72467]
[1752090220389,0.72469,2759.1,2759.0,3.2078]
[1752090220588,0.72471,2759.0,2758.9,0.72472]
[1752090221387,0.72471,2759.1,2759.0,0.7247]
[1752090221795,0.72468,2759.2,2759.1,0.72467]
[1752090222096,0.72477,2758.9,2758.8,0.72475]
[1752090222289,1.0055,2759.2,2758.9,0.72471]
[1752090222290,0.72473,2759.0,2758.9,0.72471]
[1752090222490,0.72476,2758.9,2758.8,0.72475]
[1752090222797,0.72476,2758.9,2758.6,70.79372057]
[1752090222798,0.72479,2758.8,2758.7,0.73020134]
[1752090222989,1.73029,2758.8,2758.7,0.73020134]
[1752090223186,4.61109,2758.8,2758.7,0.00543134]
[1752090223390,0.72479,2758.7,2758.6,0.18559795]
[1752090223695,0.72492,2758.2,2758.1,3.2078]
[1752090223992,0.72498,2758.1,2757.9,1.56812262]
[1752090224197,2.8306,2758.1,2757.8,2.29314262]
[1752090224399,0.725,2757.9,2757.8,0.72502]
[1752090224691,5.6631,2758.4,2757.7,3.2078]
[1752090224897,1.0055,2758.2,2757.7,4.77592262]
[1752090225097,0.72503,2757.8,2757.7,6.36091527]
[1752090225295,0.72503,2757.8,2757.7,3.2078]
[1752090225592,0.72503,2757.8,2757.7,3.93286]
[1752090225803,0.72502,2757.9,2757.8,0.72501]
[1752090226398,1.7305,2758.0,2757.9,0.725]
[1752090226599,0.72502,2757.9,2757.8,0.72501]
[1752090226795,0.72503,2757.8,2757.7,3.2078]
[1752090227001,0.72507,2757.7,2757.6,0.72507]
[1752090227201,2.7629,2757.7,2757.6,2.82237657]
[1752090227399,2.7629,2757.7,2757.6,0.72507]
[1752090227599,3.2078,2758.2,2758.1,0.72495]
[1752090227900,2.8174,2758.9,2757.9,5.02026]
[1752090228096,0.72483,2758.6,2758.5,0.72483]
[1752090228996,3.7684,2758.8,2758.2,1.81228]
[1752090229193,0.00543134,2759.0,2758.9,0.72474]
[1752090230900,1.01093134,2759.0,2758.9,0.72474]
[1752090231206,1.73566134,2759.0,2758.9,0.72474]
[1752090231400,0.00543134,2759.0,2758.9,0.72474]
[1752090233506,0.00543134,2759.0,2758.9,2.29834337]
[1752090233704,2.9495,2759.6,2759.5,0.72458]
[1752090233899,2.9495,2759.6,2759.4,0.72459]
[1752090234104,3.955,2759.6,2759.4,0.72459]
[1752090234396,3.955,2759.6,2759.5,0.72458]
[1752090234598,0.7246,2759.5,2759.3,0.72464]
[1752090234809,0.72461,2759.4,2759.3,0.72464]
[1752090235106,4.68292,2759.4,2759.3,0.72464]
[1752090235508,3.9583,2759.4,2759.3,0.72464]
[1752090236004,4.68292,2759.4,2759.3,0.72464]
[1752090236906,0.72465,2759.3,2759.2,0.72466]
[1752090237209,3.8749,2759.3,2759.2,0.72466]
[1752090237404,7.60899723,2759.9,2759.1,3.2078]
[1752090237405,1.0055,2759.8,2759.1,5.0195]
[1752090237610,0.72456,2759.6,2759.1,5.0195]
[1752090237810,2.8694,2759.5,2759.4,0.72461]
[1752090238309,4.59948,2759.5,2759.4,0.72461]
[1752090238504,2.8694,2759.5,2759.4,3.93241]
[1752090238710,2.9696,2760.0,2759.9,0.72448]
[1752090238906,2.8694,2760.2,2760.1,0.72443]
[1752090239106,2.8694,2760.2,2759.4,1.57360337]
[1752090239107,1.72983,2760.5,2760.4,0.72435]
[1752090239309,3.8749,2760.5,2760.4,0.72435]
[1752090239606,4.59922,2760.5,2760.4,0.72435]
[1752090239806,3.8749,2760.5,2760.4,0.72435]
[1752090240007,3.8749,2760.5,2760.2,0.00543134]
[1752090240008,0.81481,2760.6,2760.2,0.00543134]
[1752090240207,0.72437,2760.3,2760.2,0.00543134]
[1752090240516,3.31431723,2760.3,2760.2,0.00543134]
[1752090240714,0.72437,2760.3,2760.2,0.72982134]
[1752090241009,2.9415,2760.4,2760.2,0.00543134]
[1752090241208,3.66585,2760.4,2760.3,0.72437]
[1752090241407,0.72437,2760.3,2760.2,0.72981134]
[1752090241805,0.72437,2760.3,2760.2,0.00543134]
[1752090242009,5.0,2760.3,2759.9,0.72447]
[1752090242210,0.7245,2759.9,2759.8,0.72449]
[1752090242409,0.72452,2759.8,2759.7,0.72451]
[1752090242718,3.6818,2759.8,2759.7,0.72451]
[1752090243015,1.0055,2760.2,2760.0,0.72443]
[1752090243214,0.72443,2760.1,2760.0,0.72443]
[1752090243414,4.68722,2760.2,2760.1,0.72443]
[1752090244212,4.68722,2760.2,2760.0,0.72443]
[1752090244213,0.72444,2760.1,2760.0,0.72443]
[1752090244415,3.68174,2760.1,2760.0,0.72443]
[1752090244612,2.9573,2760.1,2760.0,0.72443]
[1752090245017,0.7244,2760.2,2760.1,0.72443]
[1752090245220,3.69909,2760.3,2760.2,0.7244]
[1752090245712,1.01093134,2760.5,2760.3,0.72437]
[1752090245917,0.00543134,2760.5,2760.4,0.72435]
[1752090246617,0.72975134,2760.5,2760.4,0.72435]
[1752090246811,0.00543134,2760.5,2760.4,0.72435]
[1752090247519,0.00543134,2760.5,2760.4,3.54475]
[1752090248015,0.72435,2760.4,2760.3,3.2078]
[1752090248214,2.59537857,2760.5,2760.4,0.72435]
[1752090248419,0.00543134,2760.5,2760.4,3.93215]
[1752090249419,0.00543134,2760.5,2760.4,3.2078]
[1752090249613,0.00543134,2760.5,2760.4,3.93215]
[1752090249808,0.00543134,2760.5,2760.1,68.454]
[1752090250014,0.7244,2760.2,2760.1,69.17841]
[1752090250314,0.72448,2760.0,2759.7,77.4601]
[1752090250519,0.7245,2759.9,2759.8,0.72448]
[1752090250713,0.00543134,2760.5,2760.4,0.72435]
[1752090250918,0.00543134,2760.5,2760.4,3.93215]
[1752090251818,0.00543134,2760.5,2760.4,6.92075]
[1752090252126,0.00543134,2760.5,2760.4,3.93215]
[1752090252620,0.72975134,2760.5,2760.4,3.93215]
[1752090253021,0.00543134,2760.5,2760.4,0.72435]
[1752090255324,1.34e-06,2760.5,2760.4,11.37819723]
[1752090255727,1.34e-06,2760.5,2760.4,8.78825]
[1752090256829,1.34e-06,2760.5,2760.4,0.72435]
[1752090257328,1.34e-06,2760.5,2760.4,3.78825]
[1752090257828,1.34e-06,2760.5,2760.4,68.98235]
[1752090258633,1.34e-06,2760.5,2760.4,72.19015]
[1752090259731,1.34e-06,2760.5,2760.4,77.20155]
[1752090259929,1.34e-06,2760.5,2760.4,81.72775337]
[1752090260126,1.34e-06,2760.5,2760.4,83.30726527]
[1752090260328,1.34e-06,2760.5,2760.4,80.15415]
[1752090260838,1.34e-06,2760.5,2760.4,83.29093755]
[1752090261131,1.34e-06,2760.5,2760.4,80.15415]
[1752090261335,1.34e-06,2760.5,2760.4,78.20746048]
[1752090261632,1.34e-06,2760.5,2760.4,77.16176586]
[1752090261835,1.34e-06,2760.5,2760.4,75.06915]
[1752090262029,1.34e-06,2760.5,2760.4,3.94355]
[1752090262429,1.34e-06,2760.5,2760.4,38.01455]
[1752090263033,1.34e-06,2760.5,2760.4,38.00315]
[1752090264133,1.34e-06,2760.5,2760.4,37.97715]
[1752090265028,1.34e-06,2760.5,2760.4,39.5469724]
[1752090265233,1.34e-06,2760.5,2760.4,42.6344724]
[1752090265738,1.34e-06,2760.5,2760.4,47.6441724]
[1752090266039,1.34e-06,2760.5,2760.4,46.07435]
[1752090266231,1.34e-06,2760.5,2760.4,49.21266048]
[1752090266627,1.34e-06,2760.5,2760.4,46.07435]
[1752090266834,7.76418,2761.9,2761.8,0.72398]
[1752090267033,8.48813,2761.9,2761.8,0.72398]
[1752090267537,1.81002,2761.7,2761.0,69.5812766]
[1752090267741,0.9166,2761.6,2761.0,71.3917066]
[1752090267931,3.2078,2762.2,2761.4,2.58994723]
[1752090268133,0.34182459,2763.0,2762.8,0.72372]
[1752090268134,3.0257,2762.9,2762.8,0.72372]
[1752090268439,1.8093,2762.8,2762.1,71.1908]
[1752090268637,3.0257,2762.7,2762.1,71.1908]
[1752090268838,0.72383,2762.4,2762.1,71.1908]
[1752090269039,3.0257,2762.3,2762.2,0.72388]
[1752090269537,3.24911193,2762.8,2762.6,0.72376]
[1752090269538,0.72375,2762.7,2762.6,0.72376]
[1752090269741,2.9219,2762.7,2762.6,0.72376]
[1752090269942,4.1244,2763.4,2763.3,0.72359]
[1752090270241,0.9166,2763.4,2762.9,3.2078]
[1752090270443,0.9166,2763.4,2763.3,0.72359]
[1752090270641,0.9166,2763.4,2763.3,1.20793869]
[1752090270834,1.64016,2763.4,2763.3,0.48434869]
[1752090271033,0.9166,2763.4,2763.3,1.20793869]
[1752090271536,2.9219,2763.9,2763.4,1.80891]
[1752090271743,0.9166,2764.2,2763.7,3.2078]
[1752090271943,6.3279,2764.4,2763.8,67.887]
[1752090272144,3.2078,2764.4,2763.8,67.887]
[1752090272336,0.9166,2764.6,2764.0,3.2078]
[1752090272535,3.2078,2764.7,2764.5,0.72327]
[1752090272741,3.2078,2765.0,2764.6,0.48236457]
[1752090272939,0.9166,2765.1,2764.8,0.72319]
[1752090273238,1.63974,2765.0,2764.9,0.48236457]
[1752090273433,4.69004,2765.0,2764.9,0.48236457]
[1752090273639,0.72319,2764.8,2764.7,67.863]
[1752090273836,1.63979,2764.8,2764.7,0.48126022]
[1752090274034,0.72338,2764.1,2764.0,3.2078]
[1752090274235,0.72348,2763.7,2763.6,3.2078]
[1752090274440,0.72345,2763.9,2763.6,3.9313]
[1752090274643,0.72348,2763.8,2763.7,67.794]
[1752090274842,0.72356,2763.4,2763.3,67.786]
[1752090275144,0.9166,2764.2,2763.3,73.58374723]
[1752090275345,0.9166,2764.2,2763.6,3.2078]
[1752090275649,3.0503,2764.1,2763.7,67.773]
[1752090275844,0.72346,2763.8,2763.7,67.773]
[1752090276045,0.72351,2763.6,2763.5,69.3141634]
[1752090276341,0.72353,2763.5,2763.4,67.75]
[1752090276546,3.83253,2763.5,2763.4,67.75]
[1752090276942,3.109,2763.5,2763.4,68.47356]
[1752090277144,3.072,2764.0,2763.9,0.72343]
[1752090277448,0.72343,2763.9,2763.8,67.719]
[1752090277644,7.2592,2763.9,2763.2,1.5571634]
[1752090277945,0.72347,2763.8,2763.6,0.7235]
[1752090278147,3.109,2763.7,2763.5,0.72351]
[1752090278342,4.1502,2764.3,2763.6,3.2078]
[1752090278537,3.109,2764.2,2763.6,5.79774723]
[1752090278742,3.2078,2764.3,2764.2,0.72335]
[1752090278944,4.1502,2764.7,2764.2,67.68]
[1752090279147,0.9424,2764.7,2764.6,0.72325]
[1752090279347,4.1502,2764.7,2764.5,67.664]
[1752090279542,0.9424,2764.6,2764.5,67.664]
[1752090279743,0.9424,2765.5,2764.5,70.8718]
[1752090280048,0.9424,2765.5,2764.8,3.2078]
[1752090280049,5.01541,2765.4,2764.8,3.2078]
[1752090280344,3.2078,2765.1,2764.5,70.8468]
[1752090280543,3.0389,2765.4,2764.7,1.80806]
[1752090280750,3.0389,2765.4,2764.8,70.8398]
[1752090280942,3.2078,2765.9,2765.1,1.80779]
[1752090281142,3.2078,2766.2,2765.2,67.61]
[1752090281345,0.72287,2766.1,2765.4,1.8076]
[1752090281649,2.934,2766.5,2765.5,67.598]
[1752090281844,3.2078,2766.4,2765.6,1.80747]
[1752090282044,0.72293,2765.8,2765.6,0.72298]
[1752090282250,0.72293,2765.8,2765.4,3.2078]
[1752090282251,0.9424,2765.8,2765.5,67.58]
[1752090282545,3.53234723,2765.7,2765.1,3.2078]
[1752090282740,0.72312,2765.1,2764.8,3.93099]
[1752090282940,0.72312,2765.1,2764.5,52.13]
[1752090282941,0.9424,2765.0,2764.5,3.2078]
[1752090283144,0.9424,2764.9,2764.4,67.539]
[1752090283345,0.72327,2764.5,2764.4,67.539]
[1752090283747,0.72327,2764.5,2764.1,70.7258]
[1752090283748,0.9424,2764.5,2764.1,70.7258]
[1752090283944,0.72335,2764.3,2764.1,68.24138]
[1752090284145,0.72335,2764.2,2764.1,67.518]
[1752090284540,0.7234,2764.1,2763.8,71.42724]
[1752090284741,0.72342,2764.0,2763.9,0.49446711]
[1752090285045,0.72339,2764.1,2763.8,67.496]
[1752090285243,0.9424,2764.5,2763.8,70.7038]
[1752090285448,3.0852,2764.6,2763.8,70.7038]
[1752090285741,3.0852,2764.6,2764.0,1.80852]
[1752090286047,0.72342,2764.0,2763.8,67.461]
[1752090286250,0.72339,2764.1,2763.8,67.461]
[1752090286543,0.7234,2764.0,2763.8,67.461]
[1752090286750,0.7234,2764.0,2763.8,68.18445]
[1752090287047,3.2078,2764.4,2763.9,0.72343]
[1752090287350,3.2078,2764.4,2763.8,67.461]
[1752090287351,0.72343,2763.9,2763.8,67.461]
[1752090287551,0.72343,2763.9,2763.8,67.95127061]
[1752090287851,0.72338,2764.1,2763.8,67.461]
[1752090288053,3.93104,2764.7,2763.8,71.6387]
[1752090288241,3.93104,2764.7,2764.4,0.72329]
[1752090288242,0.72326,2764.6,2764.4,0.72329]
[1752090288446,0.72326,2764.6,2763.8,71.6387]
[1752090288447,0.72334,2764.3,2764.1,68.11437]
[1752090288644,0.72334,2764.3,2764.2,0.49049295]
[1752090288645,3.93114,2764.3,2764.2,0.49049295]
[1752090288852,3.93114,2764.3,2764.1,0.72337]
[1752090289151,0.72335,2764.2,2764.0,0.72339]
[1752090289345,3.93114,2764.3,2764.1,1.21403376]
[1752090289547,3.2078,2764.3,2763.9,67.387]
[1752090289750,3.2078,2764.6,2764.2,2.58994723]
[1752090290050,3.2078,2766.2,2764.9,1.80789]
[1752090290250,3.2078,2765.9,2765.0,6.59594058]
[1752090290450,0.72295,2765.8,2765.5,0.72301]
[1752090290650,3.2078,2765.9,2765.3,3.2078]
[1752090291051,0.72306,2765.4,2765.1,0.72311]
[1752090291251,3.93079,2765.6,2765.2,0.99233667]
[1752090291449,0.72297,2765.7,2765.3,1.21167218]
[1752090291653,0.72297,2765.7,2764.6,4.86752]
[1752090291654,5.79774723,2765.9,2765.2,3.2078]
[1752090291853,0.72301,2765.5,2765.3,1.21165954]
[1752090292053,0.723,2765.6,2765.4,0.72304]
[1752090292252,0.723,2765.6,2765.2,3.93089]
[1752090292449,5.79774723,2765.9,2765.3,0.48884542]
[1752090292450,0.72298,2765.7,2765.3,0.48884542]
[1752090292746,5.79774723,2765.9,2764.9,3.2078]
[1752090293054,52.118,2766.2,2765.2,3.2078]
[1752090293353,0.72298,2765.7,2765.3,0.99262444]
[1752090293547,0.72296,2765.8,2765.4,1.71564444]
[1752090293747,0.72299,2765.6,2765.5,0.48874438]
[1752090293941,3.2078,2765.9,2765.5,0.48874438]
[1752090294143,3.2078,2765.6,2764.8,3.2078]
[1752090294345,3.0193,2765.5,2764.9,0.99487704]
[1752090294548,0.72314,2765.1,2765.0,0.99487704]
[1752090294743,0.72314,2765.1,2765.0,0.48985716]
[1752090294951,3.0193,2765.5,2765.0,0.99509918]
[1752090295144,0.9424,2765.4,2765.0,0.72313]
[1752090295350,0.7231,2765.2,2765.1,0.99651894]
[1752090295853,0.72308,2765.3,2765.1,0.99651894]
[1752090296154,3.93086,2765.3,2765.2,0.49066823]
[1752090296350,1.66546,2765.3,2765.2,1.00000149]
[1752090296652,4.87326,2765.3,2765.2,1.00000149]
[1752090297446,0.72306,2765.3,2765.2,1.00000149]
[1752090297650,1.66546,2765.3,2765.2,1.00000149]
[1752090297851,9.1502,2765.3,2764.6,3.2078]
[1752090298052,2.9254,2765.2,2764.8,0.72318]
[1752090298252,2.9254,2765.2,2764.7,0.72321]
[1752090298554,0.9424,2765.1,2764.7,0.72321]
[1752090298755,3.64855,2765.0,2764.8,0.72317]
[1752090299055,3.64855,2765.0,2764.6,3.2078]
[1752090299056,4.1502,2764.9,2764.3,3.2078]
[1752090299247,6.1332,2764.8,2764.3,3.2078]
[1752090299447,0.72329,2764.5,2764.4,1.55786825]
[1752090299647,0.72329,2764.5,2764.3,3.93111]
[1752090299952,2.9254,2764.8,2764.0,5.01627]
[1752090300150,2.9254,2764.8,2764.3,3.2078]
[1752090300355,0.72322,2764.7,2764.5,0.72326]
[1752090300557,3.0415,2764.6,2764.0,2.9801]
[1752090300854,3.0415,2764.6,2763.9,4.77049285]
[1752090301154,3.78238,2764.5,2764.4,0.7233]
[1752090301353,3.78238,2764.5,2764.0,1.80852]
[1752090301354,3.0415,2764.6,2764.2,3.2078]
[1752090301546,0.9424,2764.9,2764.2,3.2078]
[1752090301852,3.2078,2765.1,2764.5,3.2078]
[1752090301853,3.0415,2765.0,2764.5,3.2078]
[1752090302261,0.72325,2764.6,2764.5,3.2078]
[1752090302448,0.72336,2764.2,2764.0,1.56269285]
[1752090302651,0.72338,2764.1,2764.0,1.56269285]
[1752090302846,1.80829,2764.4,2763.9,3.1425532]
[1752090303052,3.2078,2764.5,2764.1,2.81499624]
[1752090303350,3.2078,2764.5,2763.8,3.2078]
[1752090303351,0.72338,2764.1,2764.0,2.09164624]
[1752090303555,0.72346,2763.8,2763.7,3.1425532]
[1752090303757,3.93126,2763.8,2763.7,3.1425532]
[1752090303956,3.2078,2763.8,2763.7,1.57025629]
[1752090304159,4.1502,2763.8,2763.6,1.57025629]
[1752090304359,0.72348,2763.7,2763.6,1.57025629]
[1752090304558,11.74014723,2763.8,2763.4,1.57025629]
[1752090304758,0.72356,2763.4,2763.3,1.57025629]
[1752090304959,0.72359,2763.3,2763.2,1.57025629]
[1752090305162,0.72359,2763.3,2762.2,1.80968]
[1752090305163,1.8091,2763.2,2762.5,3.1425532]
[1752090305354,2.58994723,2762.8,2762.3,3.1425532]
[1752090305661,0.72382,2762.4,2762.3,3.1425532]
[1752090305856,0.7239,2762.1,2762.0,6.3503532]
[1752090306163,0.7239,2762.1,2762.0,3.2078]
[1752090306552,3.2078,2762.2,2761.7,3.1425532]
[1752090306755,0.72388,2762.2,2762.0,0.72391]
[1752090307068,0.72388,2762.2,2761.9,0.72393]
[1752090307357,0.72394,2762.0,2761.8,0.72398]
[1752090307558,3.2078,2762.6,2761.6,3.2078]
[1752090307559,2.58994723,2762.1,2761.6,3.2078]
[1752090307762,0.72401,2761.7,2761.6,3.2078]
[1752090307960,0.72399,2761.8,2761.6,3.2078]
[1752090308156,3.31395723,2761.7,2761.6,3.2078]
[1752090308357,0.72411,2761.4,2761.1,0.72415]
[1752090308664,0.72396,2761.9,2761.7,0.724]
[1752090308863,0.9185,2762.0,2761.6,3.2078]
[1752090309159,0.72386,2762.3,2762.1,0.72388]
[1752090309558,3.9397,2762.5,2761.7,3.1239]
[1752090309866,0.7239,2762.2,2761.9,0.72393]
[1752090310065,1.6424,2762.2,2761.9,0.72393]
[1752090310266,3.25330361,2764.1,2763.4,3.2078]
[1752090310461,0.9185,2765.4,2764.2,2.58994723]
[1752090310658,0.9185,2765.4,2764.0,3.2078]
[1752090310659,3.2078,2765.2,2764.8,0.72319]
[1752090310859,6.3447,2765.1,2764.3,3.2078]
[1752090311064,3.1369,2765.1,2765.0,0.72314]
[1752090311363,4.1263,2765.4,2764.6,3.2078]
[1752090311560,3.9309,2765.2,2764.8,0.72318]
[1752090311754,3.1369,2765.1,2764.7,0.72322]
[1752090311956,3.1369,2765.1,2764.8,0.72319]
[1752090312366,0.72316,2765.0,2764.6,3.93102]
[1752090312561,3.1369,2765.1,2764.6,3.2078]
[1752090312860,0.9185,2765.4,2765.0,3.2078]
[1752090313062,3.9688,2765.4,2765.0,3.2078]
[1752090313263,0.72308,2765.3,2765.0,3.2078]
[1752090313560,0.72323,2764.7,2764.0,3.2078]
[1752090313762,3.2078,2765.0,2764.0,6.2206]
[1752090313956,0.72323,2764.7,2764.3,0.72331]
[1752090314160,0.72323,2764.7,2764.0,6.2206]
[1752090314161,0.72325,2764.6,2764.2,0.72334]
[1752090314361,3.77355,2764.6,2764.2,0.72334]
[1752090314861,3.77355,2764.6,2764.1,0.72337]
[1752090314862,3.0503,2764.6,2764.1,0.72337]
[1752090315056,3.0503,2764.6,2764.0,3.2078]
[1752090315362,0.72332,2764.4,2764.0,3.93119]
[1752090315763,0.7233,2764.5,2764.1,0.72336]
[1752090315967,3.77356,2764.6,2764.2,0.72334]
[1752090316269,0.9185,2764.9,2764.3,3.2078]
[1752090316468,0.72322,2764.7,2764.3,3.2078]
[1752090316662,0.72325,2764.6,2764.3,3.93111]
[1752090316861,3.77565,2764.6,2764.3,3.93111]
[1752090317262,3.0524,2764.6,2764.3,3.93111]
[1752090317469,0.9185,2764.5,2764.3,3.2078]
[1752090317668,4.6942,2764.4,2764.3,3.2078]
[1752090317868,9.6942,2764.4,2764.3,3.2078]
[1752090318369,0.72343,2764.0,2763.9,3.2078]
[1752090318561,1.64193,2764.0,2763.9,3.2078]
[1752090319165,5.9185,2764.0,2763.6,3.2078]
[1752090319369,0.72348,2763.7,2763.6,3.2078]
[1752090319870,3.9451,2763.9,2763.6,3.2078]
[1752090320168,0.72348,2763.7,2763.6,3.2078]
[1752090321269,3.75008,2763.7,2763.6,3.2078]
[1752090321770,4.66858,2763.7,2763.6,3.74427636]
[1752090322166,4.66858,2763.7,2763.6,4.26987121]
[1752090322367,4.66858,2763.7,2763.6,4.27615349]
[1752090322766,4.66858,2763.7,2763.6,3.74427636]
[1752090323168,4.66858,2763.7,2763.6,4.27621044]
[1752090323371,4.66858,2763.7,2763.6,0.53647636]
[1752090323668,13.26559962,2763.7,2763.6,0.53191256]
[1752090323962,13.26559962,2763.7,2762.4,3.2078]
[1752090323963,1.80911,2763.1,2762.6,0.72377]
[1752090324167,0.72376,2762.7,2762.5,0.7238]
[1752090324368,0.72377,2762.6,2762.5,3.1801]
[1752090324568,0.7238,2762.5,2762.4,3.2078]
[1752090324865,1.80957,2762.4,2761.7,4.1647]
[1752090325171,0.72398,2761.8,2761.7,3.2078]
[1752090325371,1.80992,2761.9,2761.3,3.9319]
[1752090325577,0.72407,2761.5,2761.4,0.33312038]
[1752090325975,0.72408,2761.5,2761.3,0.72411]
[1752090326272,4.9598,2761.8,2761.2,3.2078]
[1752090326273,0.72411,2761.3,2761.2,3.2078]
[1752090327174,3.1498,2761.8,2761.3,0.7241]
[1752090327375,0.7241,2761.4,2761.2,0.72412]
[1752090327575,3.1498,2761.8,2760.7,3.2078]
[1752090327576,33.134,2761.5,2760.7,3.2078]
[1752090327776,33.134,2761.5,2760.5,0.72432]
[1752090327777,1.81035,2761.2,2760.5,0.72432]
[1752090327971,1.81035,2761.2,2760.4,3.2078]
[1752090327972,0.72432,2760.5,2760.4,3.2078]
[1752090328272,0.72435,2760.4,2760.3,4.1736]
[1752090328470,0.72443,2760.1,2760.0,3.2078]
[1752090328671,1.81088,2760.4,2759.7,6.91222]
[1752090328871,0.72448,2759.9,2759.8,0.33321272]
[1752090329072,3.2078,2760.5,2759.8,0.33321272]
[1752090329275,0.72448,2759.9,2759.8,3.2167]
[1752090329476,0.72448,2759.9,2758.8,1.81192]
[1752090329477,0.72458,2759.5,2759.4,3.2078]
[1752090329777,0.72474,2758.9,2758.8,3.2078]
[1752090329972,0.72474,2758.9,2758.8,3.54092686]
[1752090330375,0.72473,2759.0,2758.8,3.54092686]
[1752090330586,0.72472,2759.0,2758.9,0.332824]
[1752090330774,0.72482,2758.6,2758.5,3.2078]
[1752090330980,0.7249,2758.3,2758.2,3.2078]
[1752090331168,0.7249,2758.3,2758.2,3.54078845]
[1752090331472,0.7249,2758.3,2758.2,3.2078]
[1752090332074,3.9326,2758.7,2758.3,0.72488]
[1752090332277,0.72477,2758.8,2758.5,3.2078]
[1752090332577,1.8118,2759.0,2758.2,3.2078]
[1752090332779,3.2078,2759.2,2758.3,3.1505]
[1752090332968,0.7248,2758.7,2758.4,0.72487]
[1752090333169,3.2078,2759.6,2758.5,6.3583]
[1752090333373,0.72465,2759.3,2759.0,0.7247]
[1752090333573,3.2078,2759.6,2758.8,3.2078]
[1752090333574,0.72468,2759.2,2758.9,0.72473]
[1752090333776,3.2078,2759.6,2758.9,3.1516]
[1752090333980,6.4147,2759.5,2758.8,3.93255]
[1752090334276,6.4147,2759.5,2758.5,3.93262]
[1752090334476,0.72482,2758.6,2758.5,3.2078]
[1752090335177,0.7248,2758.7,2758.5,3.93263]
[1752090335381,0.72479,2758.8,2758.6,0.72482]
[1752090335581,0.72479,2758.7,2758.5,3.93263]
[1752090335781,0.72479,2758.7,2758.6,0.52083362]
[1752090335986,0.72478,2758.8,2758.6,4.39725362]
[1752090336179,0.72478,2758.8,2758.6,3.87642]
[1752090336374,0.72476,2758.9,2758.7,0.72478]
[1752090336584,3.2078,2759.8,2758.8,4.1647]
[1752090336784,5.01912,2759.8,2759.1,3.2078]
[1752090336985,0.72466,2759.2,2759.1,3.2078]
[1752090337388,3.2078,2759.8,2759.1,3.2078]
[1752090337577,0.72461,2759.4,2759.2,3.71285]
[1752090337980,0.72464,2759.3,2759.2,2.9882]
[1752090338182,3.2122,2759.9,2759.2,2.9882]
[1752090338382,3.2078,2760.1,2759.4,3.2078]
[1752090338582,1.8112,2759.9,2759.3,0.72463]
[1752090338778,0.72463,2759.4,2759.2,3.71285]
[1752090338975,0.72466,2759.2,2759.1,3.2078]
[1752090339383,1.81146,2759.6,2758.8,6.2417]
[1752090339384,0.7247,2759.1,2758.8,6.2417]
[1752090339585,0.72474,2758.9,2758.8,6.2417]